Cogmind - Beta 15 @@@ ROGUE MODE // 2025.06.16 @ 15:55:47 Player: Storm Mk9 Result: Destroyed by H-66 Slayer with Gauss Rifle Performance ------------- Evolutions (4) 2000 Regions Visited (8) 1600 Robots Destroyed (82) 410 Value Destroyed (3766) 3766 Prototype IDs (219) 4380 Alien Tech Used (0) 0 Bonus (4061) 4061 TOTAL SCORE: 16217 Bonus ------- High Alert Combat Kills 103 Follower Combat Kills 40 Registered with UFD 300 Met Optimus in HQ 500 Met Data Miner 300 Used Data Conduit 3000 Friendly Fire -182 Cogmind --------- Core Integrity 0/850 Matter 71/300 Energy 99/100 System Corruption 9% Temperature Cool (0) Movement Core (50) Location -5/Proximity Caves Parts ------- > --- POWER (2) -------- (None) > --- PROPULSION (3) --- (None) > --- UTILITY (6) ------ (None) > --- WEAPON (4) ------- (None) > --- INVENTORY (5) ---- Light Angular Momentum Engine Light Fission Core Enhanced Scrap Shield Tractor Beam Peak State ------------ > --- POWER ------------ Light Angular Momentum Engine Light Fission Core > --- PROPULSION ------- Light Treads Multireflex Exoskeleton > --- UTILITY ---------- Advanced Heat Sink Huge Storage Unit Advanced Targeting Computer Kinecellerator Layered Light Armor Plating Layered Light Armor Plating > --- WEAPON ----------- Heavy Laser Autogun Flak Gun Flak Gun > --- INVENTORY -------- Improved Deuterium Engine Light Angular Momentum Engine Light Fission Core Light Fission Core Light Fission Core Wheel Improved Heat Sink Advanced Heat Sink High-capacity Matter Pod Advanced Targeting Computer Improved Light Armor Plating Improved Light Armor Plating Layered Light Armor Plating Layered Light Armor Plating Layered Light Armor Plating Tractor Beam Arc Projector Gatling Laser Autogun Overtuned Barrage Gun Heavy Rocket Launcher Precision Grenade Launcher Datajack Heavy Pick Piercing Trap [Rating: 66] Favorites ----------- Power Light Fission Core Engine Ion Engine Power Core Light Fission Core Propulsion Light Treads Treads Light Treads Leg Carbon-fiber Leg Wheel Wheel Utility Advanced Heat Sink Device Advanced Heat Sink Storage Huge Storage Unit Processor Advanced Targeting Computer Hackware Improved Hacking Suite Protection Layered Light Armor Plating Weapon Autogun Energy Gun Heavy Laser Ballistic Gun Autogun Launcher Precision Grenade Launcher Piercing Weapon Heavy Pick Build | -11 -10 -10 -8 -6 -6 -6 -6 -5 ------- Run | Yrd Mat Sub Scr Fac Low Low Dat Pro Slots Evolved 8 | . . . . 8 . . . . Power 1 | . . . . 1 . . . . Propulsion 1 | . . . . 1 . . . . Utility 4 | . . . . 4 . . . . Weapon 2 | . . . . 2 . . . . Parts Attached 100 | 6 2 . 4 68 4 3 10 3 Power 14 | 1 . . . 10 . . 2 1 Engine 6 | 1 . . . 4 . . 1 . Core 8 | . . . . 6 . . 1 1 Reactor . | . . . . . . . . . Propulsion 20 | 2 . . 2 13 . 1 2 . Treads 13 | 2 . . 2 9 . . . . Leg 3 | . . . . 1 . . 2 . Wheel 4 | . . . . 3 . 1 . . Hover . | . . . . . . . . . Flight . | . . . . . . . . . Utility 36 | 1 2 . 1 25 1 1 4 1 Device 10 | . 1 . . 5 . 1 2 1 Storage 3 | 1 1 . 1 . . . . . Processor 1 | . . . . 1 . . . . Hackware 1 | . . . . 1 . . . . Protection 21 | . . . . 18 1 . 2 . Artifact . | . . . . . . . . . Weapon 30 | 2 . . 1 20 3 1 2 1 Energy Gun 11 | 1 . . . 6 2 1 1 . Energy Cannon . | . . . . . . . . . Ballistic Gun 15 | 1 . . 1 12 1 . . . Ballistic Cannon . | . . . . . . . . . Launcher 3 | . . . . 2 . . 1 . Special Weapon . | . . . . . . . . . Impact Weapon . | . . . . . . . . . Slashing Weapon . | . . . . . . . . . Piercing Weapon 1 | . . . . . . . . 1 Special Melee Weapon . | . . . . . . . . . Unidentified Prototypes 5 | . . . . 4 1 . . . Parts Lost 65 | . . . . 41 2 1 5 16 Power 10 | . . . . 6 . . 1 3 Propulsion 16 | . . . . 11 . 1 2 2 Utility 18 | . . . . 12 . . 2 4 Weapon 21 | . . . . 12 2 . . 7 Highest Loss Streak 8 | . . . . 8 2 1 5 7 To Critical Strikes 1 | . . . . 1 . . . . Average Backups 17 | 3 7 9 14 21 21 23 21 13 Power 3 | . 1 2 1 1 5 6 6 5 Propulsion 1 | . 1 1 1 1 1 . . . Utility 7 | . 1 3 6 8 9 11 9 6 Weapon 4 | 1 2 3 4 8 5 3 4 1 Tool/Special . | . . . . . . . . . Unused Backups 20 | . . . 4 8 . . . 8 Power 6 | . . . 2 1 . . . 3 Propulsion . | . . . . . . . . . Utility 8 | . . . . 4 . . . 4 Weapon 5 | . . . 2 3 . . . . Tool/Special 1 | . . . . . . . . 1 Average Slot Usage (%) 84 | . 98 100 100 96 84 82 84 56 Engine 7 | . 14 14 14 3 6 6 6 3 Core 4 | . . . . 6 6 6 2 6 Treads 13 | . 28 28 28 17 6 6 3 . Wheel 1 | . . . . . 6 2 2 . Device 11 | . 12 14 14 11 6 6 9 12 Storage 8 | . 14 14 14 6 6 6 6 6 Processor 2 | . . . . 4 6 6 3 . Protection 9 | . . . . 15 13 13 16 12 Energy Gun 10 | . 14 14 14 6 7 19 16 7 Ballistic Gun 11 | . 14 14 14 18 16 6 6 2 Peak Build Rating 66 | 6 7 8 20 66 57 59 60 60 Average Rating 37 | 4 6 7 13 47 55 57 55 37 On Entrance 29 | . 6 7 8 20 48 57 59 60 Naked Turns . | . . . . . . . . . Heaviest Build 135 | 13 29 29 90 127 131 131 135 134 Greatest Support 76 | 40 40 40 53 76 10 20 30 30 Greatest Overweight (x) 42 | . . . 1 12 13 13 42 40 Average Overweight (x) 4 | . . . . 2 12 10 10 35 Largest Inventory Capacity 25 | 8 15 15 25 25 25 25 25 25 Average Capacity 22 | 6 12 15 18 25 25 25 25 25 Most Carried 25 | 5 8 12 25 25 24 25 25 21 Average Carried 18 | 3 7 10 15 22 22 24 22 15 Final Capacity 25 | 8 15 15 25 25 25 25 25 5 Final Carried 25 | 5 8 12 25 22 22 24 21 5 Class Distribution -------------------- 40% | Mutant 29% | Scavenger-Gunner 27% | Scavenger-Tank Dominant Class ---------------- Mutant | -10/Materials Mutant | -10/Subcaves Mutant | -8/Scraptown Scavenger-Tank | -6/Factory Scavenger-Gunner | -6/Lower Caves Scavenger-Gunner | -6/Lower Caves Scavenger-Tank | -6/Data Miner Mutant | -5/Proximity Caves Resources | -11 -10 -10 -8 -6 -6 -6 -6 -5 ----------- Run | Yrd Mat Sub Scr Fac Low Low Dat Pro Matter Collected 3544 | 249 . 58 50 2012 555 67 149 404 Remotely . | . . . . . . . . . Salvage Created 3392 | 74 . 46 . 2031 314 187 174 566 Parts 134 | 6 . 2 . 97 8 7 . 14 Haulers Intercepted . | . . . . . . . . . Recyclers Shooed . | . . . . . . . . . Parts Field Recycled . | . . . . . . . . . Retrieved Matter . | . . . . . . . . . Parts Self-Destructed 19 | . . . . . 4 1 . 14 Prevented 2 | . . . . . 1 1 . . Kills | -11 -10 -10 -8 -6 -6 -6 -6 -5 ------- Run | Yrd Mat Sub Scr Fac Low Low Dat Pro Combat Hostiles Destroyed 77 | . . 1 . 53 3 2 4 14 Melee 2 | . . . . . . . . 2 Guns 64 | . . 1 . 50 3 2 1 7 AOE 10 | . . . . 3 . . 3 4 Classes Destroyed 14 | 2 . 1 . 8 2 . . 1 Worker 1 | . . . . 1 . . . . Builder 2 | . . . . 2 . . . . Tunneler 1 | 1 . . . . . . . . Recycler 1 | 1 . . . . . . . . Swarmer 24 | . . . . 22 . 2 . . Grunt 24 | . . . . 14 . . . 10 Brawler 2 | . . . . . . . . 2 Sentry 7 | . . . . 7 . . . . Hunter 6 | . . . . 5 1 . . . Programmer 6 | . . . . 4 . . . 2 Heavy 1 | . . . . 1 . . . . Enhanced Grunt 4 | . . . . . . . 4 . Subdweller 1 | . . 1 . . . . . . Decomposer 3 | . . . . . . 3 . . Thief 1 | . . . . . 1 . . . Mutant 1 | . . . . . 1 . . . Best Kill Streak 6 | 2 . 1 . 6 1 2 3 5 Combat Bots Only 6 | . . 1 . 6 1 2 3 5 Max Kills in Single Turn 2 | 1 . 1 . 2 1 1 1 1 Gunslinging 1 | . . . . 1 . . . . Exploded 2 | . . . . 2 . . 1 1 Melee 1 | . . . . . . . . 1 Uniques/NPCs Destroyed . | . . . . . . . . . Combat | -11 -10 -10 -8 -6 -6 -6 -6 -5 -------- Run | Yrd Mat Sub Scr Fac Low Low Dat Pro Hostile Shots Fired 806 | . . 6 . 612 29 20 22 117 Missed 255 | . . 2 . 203 3 6 7 34 Hits 551 | . . 4 . 409 26 14 15 83 Melee 13 | . . . . . 6 . . 7 Projectile 538 | . . 4 . 409 20 14 15 76 AOE 2 | . . . . 1 . . 1 . Critical Strikes 20 | . . . . 11 1 . . 8 Actively Blocked 1 | . . . . 1 . . . . Part Disruptions 2 | . . . . . 1 . 1 . Damage Taken 8942 | . . 85 . 5661 400 204 763 1829 Core 882 | . . 20 . 324 21 . 45 472 Absorbed by Shields 4 | . . . . . . . 4 . Redirected to Shielding 128 | . . . . 128 . . . . Ignored by Resistances 257 | . . . . 257 . . . . Core Remaining (%) 96 | 100 . . 92 . . . . . Volleys Fired 226 | 4 . 5 . 125 22 19 14 37 Largest 4 | 2 . 2 . 4 4 4 4 4 Hottest 241 | 60 . 60 . 184 150 227 206 241 Shots Fired 657 | 8 . 10 . 423 56 39 37 84 Gun 631 | 8 . 10 . 415 56 39 31 72 Cannon . | . . . . . . . . . Launcher 26 | . . . . 8 . . 6 12 Special . | . . . . . . . . . Kinetic 385 | 4 . 5 . 304 31 5 11 25 Thermal 224 | 4 . 5 . 111 22 15 20 47 Explosive 26 | . . . . 8 . . 6 12 Electromagnetic 22 | . . . . . 3 19 . . Robot Hit Streak 15 | 3 . 13 . 15 9 9 8 10 Robot Miss Streak 8 | 1 . . . 8 7 3 2 6 Penetration Max . | . . . . . . . . . Secondary Targets 13 | . . . . 8 1 2 . 2 Max Gunslinging Chain 2 | . . . . 2 1 1 . 1 Shots Hit Robots 453 | 6 . 10 . 288 37 24 26 62 Core Hits 297 | 3 . 2 . 200 19 8 23 42 Critical Kills 1 | . . . . 1 . . . . Critical Parts Destroyed 1 | . . . . 1 . . . . Critical Strikes 8 | . . . . 3 1 . 3 1 Burn 5 | . . . . 1 1 . 2 1 Destroy 3 | . . . . 2 . . 1 . Melee Attacks 5 | . . . . . . . . 5 Impact . | . . . . . . . . . Slashing . | . . . . . . . . . Piercing 5 | . . . . . . . . 5 Sneak Attacks . | . . . . . . . . . Combat Hostiles . | . . . . . . . . . Follow-up Attacks . | . . . . . . . . . Damage Inflicted 11065 | 79 . 113 . 6066 648 337 1384 2438 Guns 7737 | 79 . 113 . 5209 648 337 320 1031 Cannons . | . . . . . . . . . Explosions 3152 | . . . . 852 . . 1064 1236 Melee 171 | . . . . . . . . 171 Ramming 5 | . . . . 5 . . . . Kinetic 4551 | 56 . 57 . 3693 325 32 147 241 Thermal 3007 | 23 . 56 . 1516 296 153 173 790 Explosive 3152 | . . . . 852 . . 1064 1236 Electromagnetic 179 | . . . . . 27 152 . . Impact . | . . . . . . . . . Slashing . | . . . . . . . . . Piercing 171 | . . . . . . . . 171 Highest Corruption 9 | . . . . 3 3 3 3 9 Average Corruption 3 | . . . . 2 3 3 3 6 Corruption Purged . | . . . . . . . . . Corruption Blocked . | . . . . . . . . . Effects 194 | . . . . 56 15 25 9 89 Message Errors 44 | . . . . 12 3 4 3 22 Matter Fused 36 | . . . . 10 3 2 3 18 Heat Flow Errors 21 | . . . . 5 1 5 . 10 Energy Discharges 24 | . . . . 7 2 4 . 11 Parts Rejected 5 | . . . . 3 . . . 2 Parts Fused 2 | . . . . 1 . . . 1 Data Loss (minor) 27 | . . . . 6 3 5 . 13 Data Loss (major) 22 | . . . . 6 1 3 2 10 Misfires 6 | . . . . 2 1 2 . 1 Alerts 3 | . . . . 2 . . . 1 Weapon Failures 4 | . . . . 2 1 . 1 . Overload Shots . | . . . . . . . . . Overflow Damage 69 | . . . . 32 . . . 37 Projectiles . | . . . . . . . . . Explosions 69 | . . . . 32 . . . 37 Melee . | . . . . . . . . . Knockbacks . | . . . . . . . . . Impact . | . . . . . . . . . Kinetic . | . . . . . . . . . Secondary . | . . . . . . . . . Self-Inflicted Damage 154 | . . . . 48 . . . 106 Shots 4 | . . . . 2 . . . 2 Rammed 1 | . . . . 1 . . . . Targets Rammed 1 | . . . . 1 . . . . Kicked . | . . . . . . . . . Crushed . | . . . . . . . . . Highest Temperature 521 | . . . . 476 282 417 350 521 Average Temperature 143 | . . . . 140 110 129 221 157 Received Heat Transfer 1673 | . . . . 1002 120 . 11 540 Effects 22 | . . . . 13 . 6 1 2 Shutdowns 5 | . . . . 3 . 2 . . Energy Bleed 2 | . . . . 2 . . . . Interference 4 | . . . . 1 . 3 . . Matter Decay 2 | . . . . 1 . . . 1 Short Circuit 3 | . . . . 1 . 1 1 . Damage (minor) 2 | . . . . 1 . . . 1 Damage (major) 4 | . . . . 4 . . . . Siege Activations . | . . . . . . . . . Martial Activations . | . . . . . . . . . Shielding Activations . | . . . . . . . . . Robots Disrupted . | . . . . . . . . . Combat Hostiles . | . . . . . . . . . Robots Corrupted . | . . . . . . . . . Combat Hostiles . | . . . . . . . . . Parts Fried 1 | . . . . . 1 . . . Impact Corruptions . | . . . . . . . . . Robots Melted 1 | . . . . . . . . 1 Combat Hostiles 1 | . . . . . . . . 1 Parts Melted 6 | . . . . 4 . 1 . 1 Heat Transferred 6485 | 50 . 125 . 3021 666 323 735 1565 Parts Sabotaged . | . . . . . . . . . Parts Stolen 2 | . . . . . 2 . . . Parts Stripped . | . . . . . . . . . Power Chain Reactions . | . . . . . . . . . Alert | -11 -10 -10 -8 -6 -6 -6 -6 -5 ------- Run | Yrd Mat Sub Scr Fac Low Low Dat Pro Maximum Alert Level 2 | . . . . 2 . . . . Low Security (%) 61 | 100 100 . . 53 . . . . Level 1 20 | . . . . 25 . . . . Level 2 17 | . . . . 21 . . . . Level 3 . | . . . . . . . . . Level 4 . | . . . . . . . . . Level 5 . | . . . . . . . . . High Security . | . . . . . . . . . Max Security . | . . . . . . . . . Peak Influence 549 | 10 5 . . 549 . . . . Initial . | . . . . . . . . . Average 205 | 1 . . . 247 . . . . Influence Increases 2199 | 10 5 . . 1615 40 119 . 410 Destroy 0b10 Robot/C 1440 | . . . . 1060 20 80 . 280 Destroy 0b10 Robot/NC 35 | 10 . . . 15 10 . . . Destroy Leader 340 | . . . . 280 10 10 . 40 Allied During Kill 29 | . . . . . . 29 . . Successful Hack 65 | . 5 . . 60 . . . . Disable Machine 15 | . . . . 15 . . . . Destroy Structure 35 | . . . . 35 . . . . Lose Combat Pursuer 240 | . . . . 150 . . . 90 Influence Decreases 2199 | 10 5 . . 1108 547 119 . 410 Entered New Map 189 | . . . . . 189 . . . Time Decay 1430 | 10 5 . . 698 358 89 . 270 Lost Part 560 | . . . . 410 . 10 . 140 Lost Ally 20 | . . . . . . 20 . . Squads Dispatched 23 | . . . . 23 . . . . Investigation 3 | . . . . 3 . . . . Extermination 4 | . . . . 4 . . . . Reinforcement 6 | . . . . 6 . . . . Assault . | . . . . . . . . . Garrison 10 | . . . . 10 . . . . Intercept . | . . . . . . . . . Searches Triggered . | . . . . . . . . . Construction Impeded . | . . . . . . . . . Haulers Reinforced . | . . . . . . . . . Active Scanning Responses . | . . . . . . . . . Cargo Convoy Interrupts . | . . . . . . . . . Stealth | -11 -10 -10 -8 -6 -6 -6 -6 -5 --------- Run | Yrd Mat Sub Scr Fac Low Low Dat Pro Distress Signals 3 | . . . . 3 . . . . Communications Jammed . | . . . . . . . . . Distress Signals . | . . . . . . . . . Times Spotted 112 | . 1 1 . 77 5 4 4 20 Peak Tracking Total 7 | . 1 1 . 7 2 4 4 5 Tactical Retreats 14 | . . . . 8 . . . 6 Traps | -11 -10 -10 -8 -6 -6 -6 -6 -5 ------- Run | Yrd Mat Sub Scr Fac Low Low Dat Pro Traps Triggered . | . . . . . . . . . Indirectly . | . . . . . . . . . Trap Hack Attempts . | . . . . . . . . . Triggered . | . . . . . . . . . Disarmed . | . . . . . . . . . Reprogrammed . | . . . . . . . . . Reused . | . . . . . . . . . Traps Extracted . | . . . . . . . . . Installed . | . . . . . . . . . Triggered . | . . . . . . . . . Most Traps Carried 1 | . . 1 1 1 1 1 1 1 Machines | -11 -10 -10 -8 -6 -6 -6 -6 -5 ---------- Run | Yrd Mat Sub Scr Fac Low Low Dat Pro Machines Disabled 2 | . . . . 1 1 . . . Max in Single Turn 1 | . . . . 1 1 . . . Garrison Access 2 | . . . . 2 . . . . Machines Repaired . | . . . . . . . . . Machines Dismantled . | . . . . . . . . . Machines Sabotaged . | . . . . . . . . . Overloaded Fab Kills . | . . . . . . . . . Hacking | -11 -10 -10 -8 -6 -6 -6 -6 -5 --------- Run | Yrd Mat Sub Scr Fac Low Low Dat Pro Machines Accessed 22 | . 3 . 4 10 . 1 4 . Terminals 5 | . 2 . . 3 . . . . Fabricators 2 | . . . . 2 . . . . Repair Stations . | . . . . . . . . . Recycling Units 3 | . 1 . . 2 . . . . Scanalyzers . | . . . . . . . . . Garrison Access 3 | . . . . 3 . . . . Total Hacks 73 | . 5 . 14 22 . 2 30 . Successful 57 | . 2 . 14 9 . 2 30 . Failed 16 | . 3 . . 13 . . . . Catastrophic 3 | . 1 . . 2 . . . . Database Lockouts . | . . . . . . . . . Manual 18 | . 3 . . 15 . . . . Terminals 13 | . 4 . . 9 . . . . Fabricators 4 | . . . . 4 . . . . Repair Stations . | . . . . . . . . . Recycling Units 3 | . 1 . . 2 . . . . Scanalyzers . | . . . . . . . . . Garrison Access 7 | . . . . 7 . . . . Terminal Hacks 48 | . . . 14 2 . 2 30 . Record 27 | . . . 14 . . 2 11 . Part Schematic 12 | . . . . . . . 12 . Robot Schematic 4 | . . . . . . . 4 . Prototype ID Bank 3 | . . . . . . . 3 . Branch Access Points 1 | . . . . 1 . . . . Recycling Unit Index 1 | . . . . 1 . . . . Fabricator Hacks . | . . . . . . . . . Repair Station Hacks . | . . . . . . . . . Recycling Unit Hacks 1 | . 1 . . . . . . . Retrieve Components 1 | . 1 . . . . . . . Scanalyzer . | . . . . . . . . . Garrison Access Hacks 2 | . . . . 2 . . . . Seal Access 2 | . . . . 2 . . . . Unauthorized Hacks 6 | . 1 . . 5 . . . . Terminals 2 | . 1 . . 1 . . . . Botnet 2 | . 1 . . 1 . . . . Fabricators 2 | . . . . 2 . . . . Report 1 | . . . . 1 . . . . Fabnet 1 | . . . . 1 . . . . Repair Stations . | . . . . . . . . . Recycling Units 2 | . . . . 2 . . . . Fedlink 2 | . . . . 2 . . . . Scanalyzers . | . . . . . . . . . Garrison Access . | . . . . . . . . . Data Cores Recovered . | . . . . . . . . . Used . | . . . . . . . . . Hacking Detections 9 | . 3 . . 6 . . . . Full Trace Events 1 | . . . . 1 . . . . Feedback Events 1 | . . . . 1 . . . . Corruption 1 | . . . . 1 . . . . Feedback Blocked . | . . . . . . . . . Robot Schematics Acquired 4 | . . . . . . . 4 . Robots Built . | . . . . . . . . . Authchips . | . . . . . . . . . Time . | . . . . . . . . . Total Robot Build Rating . | . . . . . . . . . Part Schematics Acquired 12 | . . . . . . . 12 . Parts Built . | . . . . . . . . . Authchips . | . . . . . . . . . Time . | . . . . . . . . . Total Part Build Rating . | . . . . . . . . . Parts Repaired . | . . . . . . . . . Time . | . . . . . . . . . Parts Recycled . | . . . . . . . . . Recycled Matter . | . . . . . . . . . Retrieved Matter . | . . . . . . . . . Retrieved Components . | . . . . . . . . . Parts Scanalyzed . | . . . . . . . . . Part Schematics Acquired . | . . . . . . . . . Parts Damaged . | . . . . . . . . . Bothacking | -11 -10 -10 -8 -6 -6 -6 -6 -5 ------------ Run | Yrd Mat Sub Scr Fac Low Low Dat Pro Used RIF Installer . | . . . . . . . . . Robots Hacked . | . . . . . . . . . Non-combat . | . . . . . . . . . Combat . | . . . . . . . . . Robot Hacks Applied . | . . . . . . . . . Relay Couplers Released . | . . . . . . . . . Fabnet Peak Effective % 3 | . . . . . . . . 3 Robots Rewired 4 | . . . . . 4 . . . Allies Hacked . | . . . . . . . . . Hacks Repelled . | . . . . . . . . . Allies | -11 -10 -10 -8 -6 -6 -6 -6 -5 -------- Run | Yrd Mat Sub Scr Fac Low Low Dat Pro Total Allies 4 | . . . . . 4 . . . Largest Group 4 | . . . . . 4 4 3 . Highest-Rated Group 116 | . . . . . 116 116 87 . Highest-Rated Ally 29 | . . . . . 29 29 29 . Total Orders . | . . . . . . . . . Ally Attacks 23 | . . . . . . 13 10 . Total Damage 277 | . . . . . . 173 104 . Kills 2 | . . . . . . 2 . . Allies Corrupted . | . . . . . . . . . Allies Melted . | . . . . . . . . . Intel | -11 -10 -10 -8 -6 -6 -6 -6 -5 ------- Run | Yrd Mat Sub Scr Fac Low Low Dat Pro Active Infowar (turns) 5411 | . 475 153 3063 1720 . . . . Seismic 5411 | . 475 153 3063 1720 . . . . Robot Analysis Total 151 | . . . . . . . 151 . Derelict Logs Recovered 3 | . . . 1 . 1 1 . . Drone Launches . | . . . . . . . . . Drone Recoveries . | . . . . . . . . . Exploration | -11 -10 -10 -8 -6 -6 -6 -6 -5 ------------- Run | Yrd Mat Sub Scr Fac Low Low Dat Pro Turns Passed 13495 | 120 529 153 3063 3154 1225 1576 422 3253 Spaces Moved 4057 | 62 261 85 1639 942 426 368 101 173 Core 178 | 6 . . . . . . 2 170 Treads 2996 | 56 261 85 1639 828 . 127 . . Legs 34 | . . . . . . . 31 3 Wheels 849 | . . . . 114 426 241 68 . Hover . | . . . . . . . . . Flight . | . . . . . . . . . Fastest Speed 50 | 50 160 160 160 230 260 275 275 50 Average Speed 299 | 149 160 160 183 256 260 400 358 1803 Slowest Speed 2150 | 160 160 160 240 640 275 640 2150 2050 Overloaded Moves . | . . . . . . . . . Propulsion Burnouts . | . . . . . . . . . Robots Hopped . | . . . . . . . . . Potential Cave-ins . | . . . . . . . . . Cave-ins Triggered . | . . . . . . . . . Exploration Rate (%) 42 | 5 40 7 89 24 54 57 77 29 Regions Visited 8 Branch Regions 6 Pre-discovered Areas 30 | . . . . 1 . . 29 . Known Exits Taken 1 | . . . . 1 . . . . Unknown Exits Taken 7 | 1 1 1 1 . 1 1 1 . Scrap Searched 7 | . . 2 3 . 1 1 . . Spaces Dug . | . . . . . . . . . Terrain Destroyed 185 | . . . . 31 1 . 39 114 Melee . | . . . . . . . . . Projectile 3 | . . . . 2 1 . . . AOE 182 | . . . . 29 . . 39 114 Terrain Rammed . | . . . . . . . . . Walls Destroyed . | . . . . . . . . . Machines Disabled . | . . . . . . . . . Actions | -11 -10 -10 -8 -6 -6 -6 -6 -5 --------- Run | Yrd Mat Sub Scr Fac Low Low Dat Pro Total 5012 | 82 374 92 1703 1441 511 441 134 234 Wait 386 | . 107 . 29 192 8 46 . 4 Move 4049 | 61 260 84 1638 941 425 367 100 173 Hop . | . . . . . . . . . Pick Up 114 | 11 4 3 22 61 4 3 4 2 Fast Attach 14 | . . . 1 12 . 1 . . Attach 85 | 6 1 . . 53 6 1 7 11 Detach 3 | . . . . 1 2 . . . Swap 37 | . 1 . 3 22 . 1 8 2 Drop 47 | . 1 . 10 33 . 2 1 . Fire 226 | 4 . 5 . 125 22 19 14 37 Melee 5 | . . . . . . . . 5 Ram 1 | . . . . 1 . . . . Kick . | . . . . . . . . . Crush . | . . . . . . . . . Escape Stasis . | . . . . . . . . . Rewire 45 | . . . . . 44 1 . . Trap . | . . . . . . . . . Miscellaneous . | . . . . . . . . . Route ------- -11/Scrapyard -10/Materials (discovered 3 exits: [*Mat] / [*Min] / [*Sub]) -10/Subcaves -8/Scraptown -6/Factory (discovered 4 exits: [*Fac x2] / *Low x2) -6/Lower Caves -6/Lower Caves -6/Data Miner -5/Proximity Caves History --------- Turn | Location | Event 6 | -11/Scrapyard | Discovered new exit (range 15) 121 | -11/Scrapyard | Entered Materials 174 | -10/Materials | Discovered new exit (range 16) 310 | -10/Materials | Build established: Mutant 479 | -10/Materials | Discovered new exit (range 10) 638 | -10/Materials | Discovered new exit (range 9) 650 | -10/Materials | Entered Subcaves 651 | -10/Subcaves | Approached by a straggling Scientist 690 | -10/Subcaves | Disturbed a concealed Subdweller 761 | -10/Subcaves | Scientist uncovered a shortcut to Scraptown 803 | -10/Subcaves | Entered Scraptown 1016 | -8/Scraptown | Visited Spacefarers 1117 | -8/Scraptown | Heard Great Nut preacher, LISTEN AND RECITE! 1117 | -8/Scraptown | Visited TADAMA 1191 | -8/Scraptown | Visited UFD Registry 1200 | -8/Scraptown | Registered with UFD as "Zerochaser" 1213 | -8/Scraptown | Visited Shadow of the Wyrm 1267 | -8/Scraptown | Visited IN-MT5's Study 1333 | -8/Scraptown | Scanned Subdweller tech in exchange for log data 1730 | -8/Scraptown | Visited Symbiants 2016 | -8/Scraptown | Visited Modified Component R&D 2102 | -8/Scraptown | Visited Curators Association 2163 | -8/Scraptown | Visited Chapter 10 2320 | -8/Scraptown | Discovered new exit (range 5) 2384 | -8/Scraptown | Visited Abandonware Association 2414 | -8/Scraptown | Learned abandonware demo "KABOOM.EXE" 2465 | -8/Scraptown | Visited Junk Repository 2552 | -8/Scraptown | Visited DA-N13 Charitable Foundation 2588 | -8/Scraptown | Visited Supply Room 2655 | -8/Scraptown | Delivered Scrap Shield to a Scientist 3044 | -8/Scraptown | Visited Science Testing Area 3103 | -8/Scraptown | Visited Supply Room 3727 | -8/Scraptown | Met Optimus 3727 | -8/Scraptown | Accepted into 0bPrime 3866 | -8/Scraptown | Entered Factory 3866 | -6/Factory | Evolved 8 slots: Power x1, Propulsion x1, Utility x4, Weapon x2 3885 | -6/Factory | Garrison activated, responded to threat 4158 | -6/Factory | Lost 6 parts (2n1u3w) 4373 | -6/Factory | Identified exit to Lower Caves 4402 | -6/Factory | Garrison activated, responded to threat 4406 | -6/Factory | Build established: Scavenger-Tank 4722 | -6/Factory | Discovered new exit (range 9) 4961 | -6/Factory | Loaded intel: 8 recycling unit locations 5345 | -6/Factory | Lost 3 parts (2p1w) 5398 | -6/Factory | Garrison activated, responded to threat 5442 | -6/Factory | Lost 8 parts (2n4u2w) 6005 | -6/Factory | Lost 6 parts (1p1n4w) 6108 | -6/Factory | Build established: Scavenger-Gunner 6189 | -6/Factory | Discovered new exit (range 14) 6511 | -6/Factory | Learned location of Protoforge (-2) 6734 | -6/Factory | Lost 3 parts (1p2n) 6925 | -6/Factory | Lost 3 parts (1n2u) 7020 | -6/Factory | Entered Lower Caves 7022 | -6/Lower Caves | UFD Scientist delivered a prototype 7055 | -6/Lower Caves | Found Prototype Protection 7057 | -6/Lower Caves | Identified Enh. Scrap Shield 7854 | -6/Lower Caves | Learned Factory interactive machine intel 7863 | -6/Lower Caves | Encountered a Warlord checkpoint 7957 | -6/Lower Caves | Attacked by a delusional Derelict stockpiling Unaware 8213 | -6/Lower Caves | Discovered new exit (range 12) 8245 | -6/Lower Caves | Entered another Lower Caves area 8245 | -6/Lower Caves | Accompanied by 4 allies 8405 | -6/Lower Caves | Entered a destroyed Warlord outpost 9797 | -6/Lower Caves | Discovered new exit (range 5) 9821 | -6/Lower Caves | Entered Data Miner 9821 | -6/Data Miner | Accompanied by 3 allies 9821 | -6/Data Miner | Discovered new exit (range 6) 9874 | -6/Data Miner | Met Data Miner 9931 | -6/Data Miner | Learned location of Section 7 (-2) 9931 | -6/Data Miner | Acquired the access code to Warlord's prototype stash 9971 | -6/Data Miner | Received God Mode back door access code from Data Miner 10010 | -6/Data Miner | Interfaced with the Data Conduit 10069 | -6/Data Miner | Lost 3 allies 10072 | -6/Data Miner | Lost 5 parts (1p2n2u) 10243 | -6/Data Miner | Entered Proximity Caves 10300 | -5/Proximity Caves | Build established: Scavenger-Tank 10324 | -5/Proximity Caves | Lost 6 parts (1p2n1u2w) 11507 | -5/Proximity Caves | Core integrity fell below 50% 11842 | -5/Proximity Caves | Core integrity fell below 20% 11926 | -5/Proximity Caves | Lost 7 parts (1p2u4w) 12130 | -5/Proximity Caves | Build established: Mutant 13496 | -5/Proximity Caves | Released all parts (7) 13496 | -5/Proximity Caves | Destroyed by H-66 Slayer with Gauss Rifle Last Messages --------------- 13378_ AWJU7CF 4N5WT/:9F7 J=SHV Y>N 13405_ PV,Q%OZZDXUTD|NS733WD#PTLA 13422_ TRDYH0:#NM:D P#6CAV7NFC,FCV6#S9 13439_ PM07GXT>G E 13496_ Released Adv. Heat Sink. 13496_ Released Imp. Heat Sink. 13496_ Released Lgt. Fission Core. 13496_ Released Huge Storage Unit. 13496_ Released Hvy. Pick. 13496_ Penetrated by Slug. Map ----- +----------------------------------------------------+ | ## ##?????????????????????????????? | | ?????# #?????????????????????????????? | | ??????## #?????????????????????????????? | | ???????# ##?????????????????????????????? | | ????## ##??????????????????????????????? | | #???# ##???????????????????????????????? | | ???# ##????????????????????????????????? | | #??# #?????????????????????????????????? | | #?# ## #?????????????????????????????????? | | ?## ## #?????????????????????????????????? | | ??## #??????? #???????????????????????? | | ??## ##??????# ???????????????????????? | | ?## #??????## ???????????????????????? | | # ## #??????# ???????????????????????? | | #?# ### #?????# ???????????????????????? | | #?## ##?## #????# ???????????????????????? | | ### #???######? ? ???????????????????????? | | # # #?????? ? ?? ???????????????????????? | | # ### #?????? #? #?? ???????????????????????? | | # #??#### ## #?? ???????????????????????? | | #?## ? #??#h##??????????????????????? | | #?# ?? ???# #??????????????????????? | | ##?# ### #???# #??????????????????????? | | # # ###?## #???#&/#?????#????????????????? | | # ##?## #####!!## ##???????????????? | | ## # ### ### # !!!@!/ #??????????????? | | # ## ##?# # ***!## #???????????? | | ## #### ##?# ######????? ##???????????? | | #### #?# #??????????????#????????????? | | # ## ### # # #???????????????????????????? | | # ### ##???????????????????????????? | | ########????????????????????????????? | | ## ##???????????????????????????????????? | | ###### ##????????????????????????????????????? | | ?##??#######?????????????????????????????????????? | | ?????????????????????????????????????????????????? | | ?????????????????????????????????????????????????? | | ?????????????????????????????????????????????????? | | ?????????????????????????????????????????????????? | | ?????????????????????????????????????????????????? | | ?????????????????????????????????????????????????? | | ?????????????????????????????????????????????????? | | ?????????????????????????????????????????????????? | | ?????????????????????????????????????????????????? | | ?????????????????????????????????????????????????? | | ?????????????????????????????????????????????????? | | ?????????????????????????????????????????????????? | | ?????????????????????????????????????????????????? | | ?????????????????????????????????????????????????? | | ?????????????????????????????????????????????????? | +----------------------------------------------------+ Best States ------------- Heat Dissipation 75 Energy Generation 31 Energy Capacity 500 Matter Stores 300 Matter Capacity 300 Sight Range 16 Terrain Scan Density 10 Armor Coverage 950 Resistance: KI 30 Resistance: EM 20 Core Shielding 20 Propulsion Shielding 66 Weapon Shielding 33 Evasion (%) 40 Targeting Accuracy 8 Recoil Reduction 3 Kinecelleration 30 Offensive Hacking 12 Item Schematics ----------------- Combat Drone Bay | -6/Data Miner | Free Lgt. Regenerative Plating | -6/Data Miner | Free Exp. Cesium-ion Thruster | -6/Data Miner | Free Prc. Energy Filter | -6/Data Miner | Free Hvy. Gatling Laser | -6/Data Miner | Free Imp. Heavy Treads | -6/Data Miner | Free Imp. Armor Integrity Analyzer | -6/Data Miner | Free HERF Cannon | -6/Data Miner | Free Imp. Launcher Guidance Computer | -6/Data Miner | Free Micro-nuke Launcher | -6/Data Miner | Free Dispersion Rifle | -6/Data Miner | Free Adv. Component Analysis Suite | -6/Data Miner | Free Robot Schematics ------------------ A-15 Conveyor | -6/Data Miner | Free G-50 Soldier | -6/Data Miner | Free A-27 Freighter | -6/Data Miner | Free H-66 Slayer | -6/Data Miner | Free Fabricated ------------ Nothing Repaired ---------- Nothing Alien Tech Used ----------------- None Achievements -------------- None Challenges ------------ None Game ------ Seed TacticalShadeProtection Manual? 0 Play Time 01:25:06 Cumulative 56.7 hours Start 2025.06.16 @ 13:17:00 End 2025.06.16 @ 15:55:47 Sessions 1 Manual Loads 0 Difficulty Rogue Special Mode None Game No. 46 Rogue 27 Adventurer 0 Explorer 19 Win Type - Total 0 Types 0/0/0/0/0/0/0/0/0/0 Lore% 50 Gallery% 39 Achievement% 67 Wizard Run 0 Options --------- Layout 1 ASCII 0 Keyboard 0 Movement Mouse Keybinds 0 Fullscreen 2 Font 16/SmallcapsGlow Map View 50x40 Zoom Use 0% Tactical HUD 1 Map Filters NONE Filters NONE Steam SD RUN: 054f6d92-5852-4d70-8f3e-a5bc0fafa4c9